Workbook

Sheet Strona główna
B4: Cennik NOARK Electric Sp. z o.o.
B5: Polska
B6: Ważny od | D6: 2020-09-14

Sheet Cennik
A2: Cennik NOARK Electric Sp. z o.o. | D2: Ważny od: | E2: =Valid -> 2020-09-14
A3: Polska
A4: Numer katalogowy | B4: Typ | C4: Opis | D4: Grupa rabatowa | E4: Cena netto (PLN) | F4: Rabat | G4: Cena netto z rabatem (PLN) | H4: Kod EAN produktu | I4: Podstawowe opakowanie (szt) | J4: Kod EAN/GTIN podstawowego opakowania | K4: Opakowanie kartonowe (szt) | L4: Kod EAN/GTIN opakowania kartonowego | M4: Taryfa celna | N4: Waga jednostki (kg)
A6: Wył. nadprądowe Ex9BH, 10 kA
A7: 100270 | B7: Ex9BH 1P B1 | C7: Wył. nadpr. 10 kA, ch-ka B, 1 A, 1-bieg. | D7: NAA | E7: 56.9 | F7: =NAA -> 0 | G7: =E7*(1-F7) -> 56.9 | H7: 8592765002716 | I7: 12 | J7: 18592765002713 | K7: 144 | L7: 28592765002710 | M7: 8536201090 | N7: 0.12
A8: 100271 | B8: Ex9BH 1P B2 | C8: Wył. nadpr. 10 kA, ch-ka B, 2 A, 1-bieg. | D8: NAA | E8: 48 | F8: 0 | G8: 48 | H8: 8592765002723 | I8: 12 | J8: 18592765002720 | K8: 144 | L8: 28592765002727 | M8: 8536201090 | N8: 0.12
A9: 100272 | B9: Ex9BH 1P B3 | C9: Wył. nadpr. 10 kA, ch-ka B, 3 A, 1-bieg. | D9: NAA | E9: 51.2 | F9: 0 | G9: 51.2 | H9: 8592765002730 | I9: 12 | J9: 18592765002737 | K9: 144 | L9: 28592765002734 | M9: 8536201090 | N9: 0.12
A10: 100273 | B10: Ex9BH 1P B4 | C10: Wył. nadpr. 10 kA, ch-ka B, 4 A, 1-bieg. | D10: NAA | E10: 48 | F10: 0 | G10: 48 | H10: 8592765002747 | I10: 12 | J10: 18592765002744 | K10: 144 | L10: 28592765002741 | M10: 8536201090 | N10: 0.12
A11: 100274 | B11: Ex9BH 1P B6 | C11: Wył. nadpr. 10 kA, ch-ka B, 6 A, 1-bieg. | D11: NAA | E11: 31.1 | F11: 0 | G11: 31.1 | H11: 8592765002754 | I11: 12 | J11: 18592765002751 | K11: 144 | L11: 28592765002758 | M11: 8536201090 | N11: 0.12
A12: 100275 | B12: Ex9BH 1P B8 | C12: Wył. nadpr. 10 kA, ch-ka B, 8 A, 1-bieg. | D12: NAA | E12: 31.1 | F12: 0 | G12: 31.1 | H12: 8592765002761 | I12: 12 | J12: 18592765002768 | K12: 144 | L12: 28592765002765 | M12: 8536201090 | N12: 0.12
A13: 100276 | B13: Ex9BH 1P B10 | C13: Wył. nadpr. 10 kA, ch-ka B, 10 A, 1-bieg. | D13: NAA | E13: 21.5 | F13: 0 | G13: 21.5 | H13: 8592765002778 | I13: 12 | J13: 18592765002775 | K13: 144 | L13: 28592765002772 | M13: 8536201090 | N13: 0.12
A14: 100277 | B14: Ex9BH 1P B13 | C14: Wył. nadpr. 10 kA, ch-ka B, 13 A, 1-bieg. | D14: NAA | E14: 21.5 | F14: 0 | G14: 21.5 | H14: 8592765002785 | I14: 12 | J14: 18592765002782 | K14: 144 | L14: 28592765002789 | M14: 8536201090 | N14: 0.12
A15: 100278 | B15: Ex9BH 1P B16 | C15: Wył. nadpr. 10 kA, ch-ka B, 16 A, 1-bieg. | D15: NAA | E15: 21.6 | F15: 0 | G15: 21.6 | H15: 8592765002792 | I15: 12 | J15: 18592765002799 | K15: 144 | L15: 28592765002796 | M15: 8536201090 | N15: 0.12
A16: 100279 | B16: Ex9BH 1P B20 | C16: Wył. nadpr. 10 kA, ch-ka B, 20 A, 1-bieg. | D16: NAA | E16: 21.5 | F16: 0 | G16: 21.5 | H16: 8592765002808 | I16: 12 | J16: 18592765002805 | K16: 144 | L16: 28592765002802 | M16: 8536201090 | N16: 0.12
A17: 100280 | B17: Ex9BH 1P B25 | C17: Wył. nadpr. 10 kA, ch-ka B, 25 A, 1-bieg. | D17: NAA | E17: 25 | F17: 0 | G17: 25 | H17: 8592765002815 | I17: 12 | J17: 18592765002812 | K17: 144 | L17: 28592765002819 | M17: 8536201090 | N17: 0.12
A18: 100281 | B18: Ex9BH 1P B32 | C18: Wył. nadpr. 10 kA, ch-ka B, 32 A, 1-bieg. | D18: NAA | E18: 25 | F18: 0 | G18: 25 | H18: 8592765002822 | I18: 12 | J18: 18592765002829 | K18: 144 | L18: 28592765002826 | M18: 8536201090 | N18: 0.12
A19: 100282 | B19: Ex9BH 1P B40 | C19: Wył. nadpr. 10 kA, ch-ka B, 40 A, 1-bieg. | D19: NAA | E19: 25 | F19: 0 | G19: 25 | H19: 8592765002839 | I19: 12 | J19: 18592765002836 | K19: 144 | L19: 28592765002833 | M19: 8536201090 | N19: 0.12
A20: 100283 | B20: Ex9BH 1P B50 | C20: Wył. nadpr. 10 kA, ch-ka B, 50 A, 1-bieg. | D20: NAA | E20: 56.9 | F20: 0 | G20: 56.9 | H20: 8592765002846 | I20: 12 | J20: 18592765002843 | K20: 144 | L20: 28592765002840 | M20: 8536201090 | N20: 0.12
A21: 100284 | B21: Ex9BH 1P B63 | C21: Wył. nadpr. 10 kA, ch-ka B, 63 A, 1-bieg. | D21: NAA | E21: 56.9 | F21: 0 | G21: 56.9 | H21: 8592765002853 | I21: 12 | J21: 18592765002850 | K21: 144 | L21: 28592765002857 | M21: 8536201090 | N21: 0.12
A22: 100285 | B22: Ex9BH 1PN B1 | C22: Wył. nadpr. 10 kA, ch-ka B, 1 A, 1+N-bieg. | D22: NAA | E22: 97.2 | F22: 0 | G22: 97.2 | H22: 8592765002860 | I22: 6 | J22: 18592765002867 | K22: 72 | L22: 28592765002864 | M22: 8536201090 | N22: 0.24
A23: 100286 | B23: Ex9BH 1PN B2 | C23: Wył. nadpr. 10 kA, ch-ka B, 2 A, 1+N-bieg. | D23: NAA | E23: 89.9 | F23: 0 | G23: 89.9 | H23: 8592765002877 | I23: 6 | J23: 18592765002874 | K23: 72 | L23: 28592765002871 | M23: 8536201090 | N23: 0.24
A24: 100287 | B24: Ex9BH 1PN B3 | C24: Wył. nadpr. 10 kA, ch-ka B, 3 A, 1+N-bieg. | D24: NAA | E24: 93 | F24: 0 | G24: 93 | H24: 8592765002884 | I24: 6 | J24: 18592765002881 | K24: 72 | L24: 28592765002888 | M24: 8536201090 | N24: 0.24
A25: 100288 | B25: Ex9BH 1PN B4 | C25: Wył. nadpr. 10 kA, ch-ka B, 4 A, 1+N-bieg. | D25: NAA | E25: 93 | F25: 0 | G25: 93 | H25: 8592765002891 | I25: 6 | J25: 18592765002898 | K25: 72 | L25: 28592765002895 | M25: 8536201090 | N25: 0.24
A26: 100289 | B26: Ex9BH 1PN B6 | C26: Wył. nadpr. 10 kA, ch-ka B, 6 A, 1+N-bieg. | D26: NAA | E26: 92 | F26: 0 | G26: 92 | H26: 8592765002907 | I26: 6 | J26: 18592765002904 | K26: 72 | L26: 28592765002901 | M26: 8536201090 | N26: 0.24
A27: 100290 | B27: Ex9BH 1PN B8 | C27: Wył. nadpr. 10 kA, ch-ka B, 8 A, 1+N-bieg. | D27: NAA | E27: 92 | F27: 0 | G27: 92 | H27: 8592765002914 | I27: 6 | J27: 18592765002911 | K27: 72 | L27: 28592765002918 | M27: 8536201090 | N27: 0.24
A28: 100291 | B28: Ex9BH 1PN B10 | C28: Wył. nadpr. 10 kA, ch-ka B, 10 A, 1+N-bieg. | D28: NAA | E28: 75.5 | F28: 0 | G28: 75.5 | H28: 8592765002921 | I28: 6 | J28: 18592765002928 | K28: 72 | L28: 28592765002925 | M28: 8536201090 | N28: 0.24
A29: 100292 | B29: Ex9BH 1PN B13 | C29: Wył. nadpr. 10 kA, ch-ka B, 13 A, 1+N-bieg. | D29: NAA | E29: 75.5 | F29: 0 | G29: 75.5 | H29: 8592765002938 | I29: 6 | J29: 18592765002935 | K29: 72 | L29: 28592765002932 | M29: 8536201090 | N29: 0.24
A30: 100293 | B30: Ex9BH 1PN B16 | C30: Wył. nadpr. 10 kA, ch-ka B, 16 A, 1+N-bieg. | D30: NAA | E30: 75.5 | F30: 0 | G30: 75.5 | H30: 8592765002945 | I30: 6 | J30: 18592765002942 | K30: 72 | L30: 28592765002949 | M30: 8536201090 | N30: 0.24
A31: 100294 | B31: Ex9BH 1PN B20 | C31: Wył. nadpr. 10 kA, ch-ka B, 20 A, 1+N-bieg. | D31: NAA | E31: 75.5 | F31: 0 | G31: 75.5 | H31: 8592765002952 | I31: 6 | J31: 18592765002959 | K31: 72 | L31: 28592765002956 | M31: 8536201090 | N31: 0.24
A32: 100295 | B32: Ex9BH 1PN B25 | C32: Wył. nadpr. 10 kA, ch-ka B, 25 A, 1+N-bieg. | D32: NAA | E32: 75.5 | F32: 0 | G32: 75.5 | H32: 8592765002969 | I32: 6 | J32: 18592765002966 | K32: 72 | L32: 28592765002963 | M32: 8536201090 | N32: 0.24
A33: 100296 | B33: Ex9BH 1PN B32 | C33: Wył. nadpr. 10 kA, ch-ka B, 32 A, 1+N-bieg. | D33: NAA | E33: 75.5 | F33: 0 | G33: 75.5 | H33: 8592765002976 | I33: 6 | J33: 18592765002973 | K33: 72 | L33: 28592765002970 | M33: 8536201090 | N33: 0.24
A34: 100297 | B34: Ex9BH 1PN B40 | C34: Wył. nadpr. 10 kA, ch-ka B, 40 A, 1+N-bieg. | D34: NAA | E34: 83.7 | F34: 0 | G34: 83.7 | H34: 8592765002983 | I34: 6 | J34: 18592765002980 | K34: 72 | L34: 28592765002987 | M34: 8536201090 | N34: 0.24
A35: 100298 | B35: Ex9BH 1PN B50 | C35: Wył. nadpr. 10 kA, ch-ka B, 50 A, 1+N-bieg. | D35: NAA | E35: 133.3 | F35: 0 | G35: 133.3 | H35: 8592765002990 | I35: 6 | J35: 18592765002997 | K35: 72 | L35: 28592765002994 | M35: 8536201090 | N35: 0.24
A36: 100299 | B36: Ex9BH 1PN B63 | C36: Wył. nadpr. 10 kA, ch-ka B, 63 A, 1+N-bieg. | D36: NAA | E36: 142.6 | F36: 0 | G36: 142.6 | H36: 8592765003003 | I36: 6 | J36: 18592765003000 | K36: 72 | L36: 28592765003007 | M36: 8536201090 | N36: 0.24
A37: 100300 | B37: Ex9BH 2P B1 | C37: Wył. nadpr. 10 kA, ch-ka B, 1 A, 2-bieg. | D37: NAA | E37: 120.9 | F37: 0 | G37: 120.9 | H37: 8592765003010 | I37: 6 | J37: 18592765003017 | K37: 72 | L37: 28592765003014 | M37: 8536201090 | N37: 0.24
A38: 100301 | B38: Ex9BH 2P B2 | C38: Wył. nadpr. 10 kA, ch-ka B, 2 A, 2-bieg. | D38: NAA | E38: 114.7 | F38: 0 | G38: 114.7 | H38: 8592765003027 | I38: 6 | J38: 18592765003024 | K38: 72 | L38: 28592765003021 | M38: 8536201090 | N38: 0.24
A39: 100302 | B39: Ex9BH 2P B3 | C39: Wył. nadpr. 10 kA, ch-ka B, 3 A, 2-bieg. | D39: NAA | E39: 89.9 | F39: 0 | G39: 89.9 | H39: 8592765003034 | I39: 6 | J39: 18592765003031 | K39: 72 | L39: 28592765003038 | M39: 8536201090 | N39: 0.24
A40: 100303 | B40: Ex9BH 2P B4 | C40: Wył. nadpr. 10 kA, ch-ka B, 4 A, 2-bieg. | D40: NAA | E40: 89.9 | F40: 0 | G40: 89.9 | H40: 8592765003041 | I40: 6 | J40: 18592765003048 | K40: 72 | L40: 28592765003045 | M40: 8536201090 | N40: 0.24
A41: 100304 | B41: Ex9BH 2P B6 | C41: Wył. nadpr. 10 kA, ch-ka B, 6 A, 2-bieg. | D41: NAA | E41: 78.6 | F41: 0 | G41: 78.6 | H41: 8592765003058 | I41: 6 | J41: 18592765003055 | K41: 72 | L41: 28592765003052 | M41: 8536201090 | N41: 0.24
A42: 100305 | B42: Ex9BH 2P B8 | C42: Wył. nadpr. 10 kA, ch-ka B, 8 A, 2-bieg. | D42: NAA | E42: 75.5 | F42: 0 | G42: 75.5 | H42: 8592765003065 | I42: 6 | J42: 18592765003062 | K42: 72 | L42: 28592765003069 | M42: 8536201090 | N42: 0.24
A43: 100306 | B43: Ex9BH 2P B10 | C43: Wył. nadpr. 10 kA, ch-ka B, 10 A, 2-bieg. | D43: NAA | E43: 75.5 | F43: 0 | G43: 75.5 | H43: 8592765003072 | I43: 6 | J43: 18592765003079 | K43: 72 | L43: 28592765003076 | M43: 8536201090 | N43: 0.24
A44: 100307 | B44: Ex9BH 2P B13 | C44: Wył. nadpr. 10 kA, ch-ka B, 13 A, 2-bieg. | D44: NAA | E44: 75.5 | F44: 0 | G44: 75.5 | H44: 8592765003089 | I44: 6 | J44: 18592765003086 | K44: 72 | L44: 28592765003083 | M44: 8536201090 | N44: 0.24
A45: 100308 | B45: Ex9BH 2P B16 | C45: Wył. nadpr. 10 kA, ch-ka B, 16 A, 2-bieg. | D45: NAA | E45: 75.5 | F45: 0 | G45: 75.5 | H45: 8592765003096 | I45: 6 | J45: 18592765003093 | K45: 72 | L45: 28592765003090 | M45: 8536201090 | N45: 0.24
A46: 100309 | B46: Ex9BH 2P B20 | C46: Wył. nadpr. 10 kA, ch-ka B, 20 A, 2-bieg. | D46: NAA | E46: 75.5 | F46: 0 | G46: 75.5 | H46: 8592765003102 | I46: 6 | J46: 18592765003109 | K46: 72 | L46: 28592765003106 | M46: 8536201090 | N46: 0.24
A47: 100310 | B47: Ex9BH 2P B25 | C47: Wył. nadpr. 10 kA, ch-ka B, 25 A, 2-bieg. | D47: NAA | E47: 75.5 | F47: 0 | G47: 75.5 | H47: 8592765003119 | I47: 6 | J47: 18592765003116 | K47: 72 | L47: 28592765003113 | M47: 8536201090 | N47: 0.24
A48: 100311 | B48: Ex9BH 2P B32 | C48: Wył. nadpr. 10 kA, ch-ka B, 32 A, 2-bieg. | D48: NAA | E48: 75.5 | F48: 0 | G48: 75.5 | H48: 8592765003126 | I48: 6 | J48: 18592765003123 | K48: 72 | L48: 28592765003120 | M48: 8536201090 | N48: 0.24
A49: 100312 | B49: Ex9BH 2P B40 | C49: Wył. nadpr. 10 kA, ch-ka B, 40 A, 2-bieg. | D49: NAA | E49: 83.7 | F49: 0 | G49: 83.7 | H49: 8592765003133 | I49: 6 | J49: 18592765003130 | K49: 72 | L49: 28592765003137 | M49: 8536201090 | N49: 0.24
A50: 100313 | B50: Ex9BH 2P B50 | C50: Wył. nadpr. 10 kA, ch-ka B, 50 A, 2-bieg. | D50: NAA | E50: 125 | F50: 0 | G50: 125 | H50: 8592765003140 | I50: 6 | J50: 18592765003147 | K50: 72 | L50: 28592765003144 | M50: 8536201090 | N50: 0.24
A51: 100314 | B51: Ex9BH 2P B63 | C51: Wył. nadpr. 10 kA, ch-ka B, 63 A, 2-bieg. | D51: NAA | E51: 136.4 | F51: 0 | G51: 136.4 | H51: 8592765003157 | I51: 6 | J51: 18592765003154 | K51: 72 | L51: 28592765003151 | M51: 8536201090 | N51: 0.24
A52: 100315 | B52: Ex9BH 3P B1 | C52: Wył. nadpr. 10 kA, ch-ka B, 1 A, 3-bieg. | D52: NAA | E52: 158.1 | F52: 0 | G52: 158.1 | H52: 8592765003164 | I52: 4 | J52: 18592765003161 | K52: 48 | L52: 28592765003168 | M52: 8536201090 | N52: 0.36
A53: 100316 | B53: Ex9BH 3P B2 | C53: Wył. nadpr. 10 kA, ch-ka B, 2 A, 3-bieg. | D53: NAA | E53: 148.8 | F53: 0 | G53: 148.8 | H53: 8592765003171 | I53: 4 | J53: 18592765003178 | K53: 48 | L53: 28592765003175 | M53: 8536201090 | N53: 0.36
A54: 100317 | B54: Ex9BH 3P B3 | C54: Wył. nadpr. 10 kA, ch-ka B, 3 A, 3-bieg. | D54: NAA | E54: 80.6 | F54: 0 | G54: 80.6 | H54: 8592765003188 | I54: 4 | J54: 18592765003185 | K54: 48 | L54: 28592765003182 | M54: 8536201090 | N54: 0.36
A55: 100318 | B55: Ex9BH 3P B4 | C55: Wył. nadpr. 10 kA, ch-ka B, 4 A, 3-bieg. | D55: NAA | E55: 80.6 | F55: 0 | G55: 80.6 | H55: 8592765003195 | I55: 4 | J55: 18592765003192 | K55: 48 | L55: 28592765003199 | M55: 8536201090 | N55: 0.36
A56: 100319 | B56: Ex9BH 3P B6 | C56: Wył. nadpr. 10 kA, ch-ka B, 6 A, 3-bieg. | D56: NAA | E56: 95.1 | F56: 0 | G56: 95.1 | H56: 8592765003201 | I56: 4 | J56: 18592765003208 | K56: 48 | L56: 28592765003205 | M56: 8536201090 | N56: 0.36
A57: 100320 | B57: Ex9BH 3P B8 | C57: Wył. nadpr. 10 kA, ch-ka B, 8 A, 3-bieg. | D57: NAA | E57: 95.1 | F57: 0 | G57: 95.1 | H57: 8592765003218 | I57: 4 | J57: 18592765003215 | K57: 48 | L57: 28592765003212 | M57: 8536201090 | N57: 0.36
A58: 100321 | B58: Ex9BH 3P B10 | C58: Wył. nadpr. 10 kA, ch-ka B, 10 A, 3-bieg. | D58: NAA | E58: 73.4 | F58: 0 | G58: 73.4 | H58: 8592765003225 | I58: 4 | J58: 18592765003222 | K58: 48 | L58: 28592765003229 | M58: 8536201090 | N58: 0.36
A59: 100322 | B59: Ex9BH 3P B13 | C59: Wył. nadpr. 10 kA, ch-ka B, 13 A, 3-bieg. | D59: NAA | E59: 73.4 | F59: 0 | G59: 73.4 | H59: 8592765003232 | I59: 4 | J59: 18592765003239 | K59: 48 | L59: 28592765003236 | M59: 8536201090 | N59: 0.36
A60: 100323 | B60: Ex9BH 3P B16 | C60: Wył. nadpr. 10 kA, ch-ka B, 16 A, 3-bieg. | D60: NAA | E60: 74.4 | F60: 0 | G60: 74.4 | H60: 8592765003249 | I60: 4 | J60: 18592765003246 | K60: 48 | L60: 28592765003243 | M60: 8536201090 | N60: 0.36
A61: 100324 | B61: Ex9BH 3P B20 | C61: Wył. nadpr. 10 kA, ch-ka B, 20 A, 3-bieg. | D61: NAA | E61: 73.4 | F61: 0 | G61: 73.4 | H61: 8592765003256 | I61: 4 | J61: 18592765003253 | K61: 48 | L61: 28592765003250 | M61: 8536201090 | N61: 0.36
A62: 100325 | B62: Ex9BH 3P B25 | C62: Wył. nadpr. 10 kA, ch-ka B, 25 A, 3-bieg. | D62: NAA | E62: 82.7 | F62: 0 | G62: 82.7 | H62: 8592765003263 | I62: 4 | J62: 18592765003260 | K62: 48 | L62: 28592765003267 | M62: 8536201090 | N62: 0.36
A63: 100326 | B63: Ex9BH 3P B32 | C63: Wył. nadpr. 10 kA, ch-ka B, 32 A, 3-bieg. | D63: NAA | E63: 82.7 | F63: 0 | G63: 82.7 | H63: 8592765003270 | I63: 4 | J63: 18592765003277 | K63: 48 | L63: 28592765003274 | M63: 8536201090 | N63: 0.36
A64: 100327 | B64: Ex9BH 3P B40 | C64: Wył. nadpr. 10 kA, ch-ka B, 40 A, 3-bieg. | D64: NAA | E64: 107.5 | F64: 0 | G64: 107.5 | H64: 8592765003287 | I64: 4 | J64: 18592765003284 | K64: 48 | L64: 28592765003281 | M64: 8536201090 | N64: 0.36
A65: 100328 | B65: Ex9BH 3P B50 | C65: Wył. nadpr. 10 kA, ch-ka B, 50 A, 3-bieg. | D65: NAA | E65: 161.2 | F65: 0 | G65: 161.2 | H65: 8592765003294 | I65: 4 | J65: 18592765003291 | K65: 48 | L65: 28592765003298 | M65: 8536201090 | N65: 0.36
A66: 100329 | B66: Ex9BH 3P B63 | C66: Wył. nadpr. 10 kA, ch-ka B, 63 A, 3-bieg. | D66: NAA | E66: 242.8 | F66: 0 | G66: 242.8 | H66: 8592765003300 | I66: 4 | J66: 18592765003307 | K66: 48 | L66: 28592765003304 | M66: 8536201090 | N66: 0.36
A67: 100330 | B67: Ex9BH 3PN B1 | C67: Wył. nadpr. 10 kA, ch-ka B, 1 A, 3+N-bieg. | D67: NAA | E67: 200.5 | F67: 0 | G67: 200.5 | H67: 8592765003317 | I67: 3 | J67: 18592765003314 | K67: 36 | L67: 28592765003311 | M67: 8536201090 | N67: 0.48
A68: 100331 | B68: Ex9BH 3PN B2 | C68: Wył. nadpr. 10 kA, ch-ka B, 2 A, 3+N-bieg. | D68: NAA | E68: 192.2 | F68: 0 | G68: 192.2 | H68: 8592765003324 | I68: 3 | J68: 18592765003321 | K68: 36 | L68: 28592765003328 | M68: 8536201090 | N68: 0.48
A69: 100332 | B69: Ex9BH 3PN B3 | C69: Wył. nadpr. 10 kA, ch-ka B, 3 A, 3+N-bieg. | D69: NAA | E69: 192.2 | F69: 0 | G69: 192.2 | H69: 8592765003331 | I69: 3 | J69: 18592765003338 | K69: 36 | L69: 28592765003335 | M69: 8536201090 | N69: 0.48
A70: 100333 | B70: Ex9BH 3PN B4 | C70: Wył. nadpr. 10 kA, ch-ka B, 4 A, 3+N-bieg. | D70: NAA | E70: 168.4 | F70: 0 | G70: 168.4 | H70: 8592765003348 | I70: 3 | J70: 18592765003345 | K70: 36 | L70: 28592765003342 | M70: 8536201090 | N70: 0.48
A71: 100334 | B71: Ex9BH 3PN B6 | C71: Wył. nadpr. 10 kA, ch-ka B, 6 A, 3+N-bieg. | D71: NAA | E71: 174.6 | F71: =NAA -> 0 | G71: =E71*(1-F71) -> 174.6 | H71: 8592765003355 | I71: 3 | J71: 18592765003352 | K71: 36 | L71: 28592765003359 | M71: 8536201090 | N71: 0.48
A72: 100335 | B72: Ex9BH 3PN B8 | C72: Wył. nadpr. 10 kA, ch-ka B, 8 A, 3+N-bieg. | D72: NAA | E72: 174.6 | F72: 0 | G72: 174.6 | H72: 8592765003362 | I72: 3 | J72: 18592765003369 | K72: 36 | L72: 28592765003366 | M72: 8536201090 | N72: 0.48
A73: 100336 | B73: Ex9BH 3PN B10 | C73: Wył. nadpr. 10 kA, ch-ka B, 10 A, 3+N-bieg. | D73: NAA | E73: 125 | F73: 0 | G73: 125 | H73: 8592765003379 | I73: 3 | J73: 18592765003376 | K73: 36 | L73: 28592765003373 | M73: 8536201090 | N73: 0.48
A74: 100337 | B74: Ex9BH 3PN B13 | C74: Wył. nadpr. 10 kA, ch-ka B, 13 A, 3+N-bieg. | D74: NAA | E74: 125 | F74: 0 | G74: 125 | H74: 8592765003386 | I74: 3 | J74: 18592765003383 | K74: 36 | L74: 28592765003380 | M74: 8536201090 | N74: 0.48
A75: 100338 | B75: Ex9BH 3PN B16 | C75: Wył. nadpr. 10 kA, ch-ka B, 16 A, 3+N-bieg. | D75: NAA | E75: 125 | F75: 0 | G75: 125 | H75: 8592765003393 | I75: 3 | J75: 18592765003390 | K75: 36 | L75: 28592765003397 | M75: 8536201090 | N75: 0.48
A76: 100339 | B76: Ex9BH 3PN B20 | C76: Wył. nadpr. 10 kA, ch-ka B, 20 A, 3+N-bieg. | D76: NAA | E76: 125 | F76: 0 | G76: 125 | H76: 8592765003409 | I76: 3 | J76: 18592765003406 | K76: 36 | L76: 28592765003403 | M76: 8536201090 | N76: 0.48
A77: 100340 | B77: Ex9BH 3PN B25 | C77: Wył. nadpr. 10 kA, ch-ka B, 25 A, 3+N-bieg. | D77: NAA | E77: 125 | F77: 0 | G77: 125 | H77: 8592765003416 | I77: 3 | J77: 18592765003413 | K77: 36 | L77: 28592765003410 | M77: 8536201090 | N77: 0.48
A78: 100341 | B78: Ex9BH 3PN B32 | C78: Wył. nadpr. 10 kA, ch-ka B, 32 A, 3+N-bieg. | D78: NAA | E78: 125 | F78: 0 | G78: 125 | H78: 8592765003423 | I78: 3 | J78: 18592765003420 | K78: 36 | L78: 28592765003427 | M78: 8536201090 | N78: 0.48
A79: 100342 | B79: Ex9BH 3PN B40 | C79: Wył. nadpr. 10 kA, ch-ka B, 40 A, 3+N-bieg. | D79: NAA | E79: 166.4 | F79: 0 | G79: 166.4 | H79: 8592765003430 | I79: 3 | J79: 18592765003437 | K79: 36 | L79: 28592765003434 | M79: 8536201090 | N79: 0.48
A80: 100343 | B80: Ex9BH 3PN B50 | C80: Wył. nadpr. 10 kA, ch-ka B, 50 A, 3+N-bieg. | D80: NAA | E80: 249 | F80: 0 | G80: 249 | H80: 8592765003447 | I80: 3 | J80: 18592765003444 | K80: 36 | L80: 28592765003441 | M80: 8536201090 | N80: 0.48
A81: 100344 | B81: Ex9BH 3PN B63 | C81: Wył. nadpr. 10 kA, ch-ka B, 63 A, 3+N-bieg. | D81: NAA | E81: 286.2 | F81: 0 | G81: 286.2 | H81: 8592765003454 | I81: 3 | J81: 18592765003451 | K81: 36 | L81: 28592765003458 | M81: 8536201090 | N81: 0.48
A82: 100345 | B82: Ex9BH 4P B1 | C82: Wył. nadpr. 10 kA, ch-ka B, 1 A, 4-bieg. | D82: NAA | E82: 200.5 | F82: 0 | G82: 200.5 | H82: 8592765003461 | I82: 3 | J82: 18592765003468 | K82: 36 | L82: 28592765003465 | M82: 8536201090 | N82: 0.48
A83: 100346 | B83: Ex9BH 4P B2 | C83: Wył. nadpr. 10 kA, ch-ka B, 2 A, 4-bieg. | D83: NAA | E83: 192.2 | F83: 0 | G83: 192.2 | H83: 8592765003478 | I83: 3 | J83: 18592765003475 | K83: 36 | L83: 28592765003472 | M83: 8536201090 | N83: 0.48
A84: 100347 | B84: Ex9BH 4P B3 | C84: Wył. nadpr. 10 kA, ch-ka B, 3 A, 4-bieg. | D84: NAA | E84: 192.2 | F84: 0 | G84: 192.2 | H84: 8592765003485 | I84: 3 | J84: 18592765003482 | K84: 36 | L84: 28592765003489 | M84: 8536201090 | N84: 0.48
A85: 100348 | B85: Ex9BH 4P B4 | C85: Wył. nadpr. 10 kA, ch-ka B, 4 A, 4-bieg. | D85: NAA | E85: 168.4 | F85: 0 | G85: 168.4 | H85: 8592765003492 | I85: 3 | J85: 18592765003499 | K85: 36 | L85: 28592765003496 | M85: 8536201090 | N85: 0.48
A86: 100349 | B86: Ex9BH 4P B6 | C86: Wył. nadpr. 10 kA, ch-ka B, 6 A, 4-bieg. | D86: NAA | E86: 174.6 | F86: 0 | G86: 174.6 | H86: 8592765003508 | I86: 3 | J86: 18592765003505 | K86: 36 | L86: 28592765003502 | M86: 8536201090 | N86: 0.48
A87: 100350 | B87: Ex9BH 4P B8 | C87: Wył. nadpr. 10 kA, ch-ka B, 8 A, 4-bieg. | D87: NAA | E87: 174.6 | F87: 0 | G87: 174.6 | H87: 8592765003515 | I87: 3 | J87: 18592765003512 | K87: 36 | L87: 28592765003519 | M87: 8536201090 | N87: 0.48
A88: 100351 | B88: Ex9BH 4P B10 | C88: Wył. nadpr. 10 kA, ch-ka B, 10 A, 4-bieg. | D88: NAA | E88: 125 | F88: 0 | G88: 125 | H88: 8592765003522 | I88: 3 | J88: 18592765003529 | K88: 36 | L88: 28592765003526 | M88: 8536201090 | N88: 0.48
A89: 100352 | B89: Ex9BH 4P B13 | C89: Wył. nadpr. 10 kA, ch-ka B, 13 A, 4-bieg. | D89: NAA | E89: 125 | F89: 0 | G89: 125 | H89: 8592765003539 | I89: 3 | J89: 18592765003536 | K89: 36 | L89: 28592765003533 | M89: 8536201090 | N89: 0.48
A90: 100353 | B90: Ex9BH 4P B16 | C90: Wył. nadpr. 10 kA, ch-ka B, 16 A, 4-bieg. | D90: NAA | E90: 125 | F90: 0 | G90: 125 | H90: 8592765003546 | I90: 3 | J90: 18592765003543 | K90: 36 | L90: 28592765003540 | M90: 8536201090 | N90: 0.48
A91: 100354 | B91: Ex9BH 4P B20 | C91: Wył. nadpr. 10 kA, ch-ka B, 20 A, 4-bieg. | D91: NAA | E91: 125 | F91: 0 | G91: 125 | H91: 8592765003553 | I91: 3 | J91: 18592765003550 | K91: 36 | L91: 28592765003557 | M91: 8536201090 | N91: 0.48
A92: 100355 | B92: Ex9BH 4P B25 | C92: Wył. nadpr. 10 kA, ch-ka B, 25 A, 4-bieg. | D92: NAA | E92: 125 | F92: 0 | G92: 125 | H92: 8592765003560 | I92: 3 | J92: 18592765003567 | K92: 36 | L92: 28592765003564 | M92: 8536201090 | N92: 0.48
A93: 100356 | B93: Ex9BH 4P B32 | C93: Wył. nadpr. 10 kA, ch-ka B, 32 A, 4-bieg. | D93: NAA | E93: 125 | F93: 0 | G93: 125 | H93: 8592765003577 | I93: 3 | J93: 18592765003574 | K93: 36 | L93: 28592765003571 | M93: 8536201090 | N93: 0.48
A94: 100357 | B94: Ex9BH 4P B40 | C94: Wył. nadpr. 10 kA, ch-ka B, 40 A, 4-bieg. | D94: NAA | E94: 166.4 | F94: 0 | G94: 166.4 | H94: 8592765003584 | I94: 3 | J94: 18592765003581 | K94: 36 | L94: 28592765003588 | M94: 8536201090 | N94: 0.48
A95: 100358 | B95: Ex9BH 4P B50 | C95: Wył. nadpr. 10 kA, ch-ka B, 50 A, 4-bieg. | D95: NAA | E95: 249 | F95: 0 | G95: 249 | H95: 8592765003591 | I95: 3 | J95: 18592765003598 | K95: 36 | L95: 28592765003595 | M95: 8536201090 | N95: 0.48
A96: 100359 | B96: Ex9BH 4P B63 | C96: Wył. nadpr. 10 kA, ch-ka B, 63 A, 4-bieg. | D96: NAA | E96: 286.2 | F96: 0 | G96: 286.2 | H96: 8592765003607 | I96: 3 | J96: 18592765003604 | K96: 36 | L96: 28592765003601 | M96: 8536201090 | N96: 0.48
A97: 100360 | B97: Ex9BH 1P C1 | C97: Wył. nadpr. 10 kA, ch-ka C, 1 A, 1-bieg. | D97: NAA | E97: 44.4 | F97: 0 | G97: 44.4 | H97: 8592765003614 | I97: 12 | J97: 18592765003611 | K97: 144 | L97: 28592765003618 | M97: 8536201090 | N97: 0.12
A98: 100361 | B98: Ex9BH 1P C2 | C98: Wył. nadpr. 10 kA, ch-ka C, 2 A, 1-bieg. | D98: NAA | E98: 44 | F98: 0 | G98: 44 | H98: 8592765003621 | I98: 12 | J98: 18592765003628 | K98: 144 | L98: 28592765003625 | M98: 8536201090 | N98: 0.12
A99: 100362 | B99: Ex9BH 1P C3 | C99: Wył. nadpr. 10 kA, ch-ka C, 3 A, 1-bieg. | D99: NAA | E99: 44.5 | F99: 0 | G99: 44.5 | H99: 8592765003638 | I99: 12 | J99: 18592765003635 | K99: 144 | L99: 28592765003632 | M99: 8536201090 | N99: 0.12
A100: 100363 | B100: Ex9BH 1P C4 | C100: Wył. nadpr. 10 kA, ch-ka C, 4 A, 1-bieg. | D100: NAA | E100: 44.1 | F100: 0 | G100: 44.1 | H100: 8592765003645 | I100: 12 | J100: 18592765003642 | K100: 144 | L100: 28592765003649 | M100: 8536201090 | N100: 0.12
A101: 100364 | B101: Ex9BH 1P C6 | C101: Wył. nadpr. 10 kA, ch-ka C, 6 A, 1-bieg. | D101: NAA | E101: 30.5 | F101: 0 | G101: 30.5 | H101: 8592765003652 | I101: 12 | J101: 18592765003659 | K101: 144 | L101: 28592765003656 | M101: 8536201090 | N101: 0.12
A102: 100365 | B102: Ex9BH 1P C8 | C102: Wył. nadpr. 10 kA, ch-ka C, 8 A, 1-bieg. | D102: NAA | E102: 30.5 | F102: 0 | G102: 30.5 | H102: 8592765003669 | I102: 12 | J102: 18592765003666 | K102: 144 | L102: 28592765003663 | M102: 8536201090 | N102: 0.12
A103: 100366 | B103: Ex9BH 1P C10 | C103: Wył. nadpr. 10 kA, ch-ka C, 10 A, 1-bieg. | D103: NAA | E103: 22 | F103: 0 | G103: 22 | H103: 8592765003676 | I103: 12 | J103: 18592765003673 | K103: 144 | L103: 28592765003670 | M103: 8536201090 | N103: 0.12
A104: 100367 | B104: Ex9BH 1P C13 | C104: Wył. nadpr. 10 kA, ch-ka C, 13 A, 1-bieg. | D104: NAA | E104: 22 | F104: 0 | G104: 22 | H104: 8592765003683 | I104: 12 | J104: 18592765003680 | K104: 144 | L104: 28592765003687 | M104: 8536201090 | N104: 0.12
A105: 100368 | B105: Ex9BH 1P C16 | C105: Wył. nadpr. 10 kA, ch-ka C, 16 A, 1-bieg. | D105: NAA | E105: 22 | F105: 0 | G105: 22 | H105: 8592765003690 | I105: 12 | J105: 18592765003697 | K105: 144 | L105: 28592765003694 | M105: 8536201090 | N105: 0.12
A106: 100369 | B106: Ex9BH 1P C20 | C106: Wył. nadpr. 10 kA, ch-ka C, 20 A, 1-bieg. | D106: NAA | E106: 22 | F106: 0 | G106: 22 | H106: 8592765003706 | I106: 12 | J106: 18592765003703 | K106: 144 | L106: 28592765003700 | M106: 8536201090 | N106: 0.12
A107: 100370 | B107: Ex9BH 1P C25 | C107: Wył. nadpr. 10 kA, ch-ka C, 25 A, 1-bieg. | D107: NAA | E107: 25.5 | F107: 0 | G107: 25.5 | H107: 8592765003713 | I107: 12 | J107: 18592765003710 | K107: 144 | L107: 28592765003717 | M107: 8536201090 | N107: 0.12
A108: 100371 | B108: Ex9BH 1P C32 | C108: Wył. nadpr. 10 kA, ch-ka C, 32 A, 1-bieg. | D108: NAA | E108: 25.5 | F108: 0 | G108: 25.5 | H108: 8592765003720 | I108: 12 | J108: 18592765003727 | K108: 144 | L108: 28592765003724 | M108: 8536201090 | N108: 0.12
A109: 100372 | B109: Ex9BH 1P C40 | C109: Wył. nadpr. 10 kA, ch-ka C, 40 A, 1-bieg. | D109: NAA | E109: 25.5 | F109: 0 | G109: 25.5 | H109: 8592765003737 | I109: 12 | J109: 18592765003734 | K109: 144 | L109: 28592765003731 | M109: 8536201090 | N109: 0.12
A110: 100373 | B110: Ex9BH 1P C50 | C110: Wył. nadpr. 10 kA, ch-ka C, 50 A, 1-bieg. | D110: NAA | E110: 53.3 | F110: 0 | G110: 53.3 | H110: 8592765003744 | I110: 12 | J110: 18592765003741 | K110: 144 | L110: 28592765003748 | M110: 8536201090 | N110: 0.12
A111: 100374 | B111: Ex9BH 1P C63 | C111: Wył. nadpr. 10 kA, ch-ka C, 63 A, 1-bieg. | D111: NAA | E111: 64.1 | F111: 0 | G111: 64.1 | H111: 8592765003751 | I111: 12 | J111: 18592765003758 | K111: 144 | L111: 28592765003755 | M111: 8536201090 | N111: 0.12
A112: 100375 | B112: Ex9BH 1PN C1 | C112: Wył. nadpr. 10 kA, ch-ka C, 1 A, 1+N-bieg. | D112: NAA | E112: 98.2 | F112: 0 | G112: 98.2 | H112: 8592765003768 | I112: 6 | J112: 18592765003765 | K112: 72 | L112: 28592765003762 | M112: 8536201090 | N112: 0.24
A113: 100376 | B113: Ex9BH 1PN C2 | C113: Wył. nadpr. 10 kA, ch-ka C, 2 A, 1+N-bieg. | D113: NAA | E113: 89.9 | F113: 0 | G113: 89.9 | H113: 8592765003775 | I113: 6 | J113: 18592765003772 | K113: 72 | L113: 28592765003779 | M113: 8536201090 | N113: 0.24
A114: 100377 | B114: Ex9BH 1PN C3 | C114: Wył. nadpr. 10 kA, ch-ka C, 3 A, 1+N-bieg. | D114: NAA | E114: 93 | F114: 0 | G114: 93 | H114: 8592765003782 | I114: 6 | J114: 18592765003789 | K114: 72 | L114: 28592765003786 | M114: 8536201090 | N114: 0.24
A115: 100378 | B115: Ex9BH 1PN C4 | C115: Wył. nadpr. 10 kA, ch-ka C, 4 A, 1+N-bieg. | D115: NAA | E115: 97.2 | F115: 0 | G115: 97.2 | H115: 8592765003799 | I115: 6 | J115: 18592765003796 | K115: 72 | L115: 28592765003793 | M115: 8536201090 | N115: 0.24
A116: 100379 | B116: Ex9BH 1PN C6 | C116: Wył. nadpr. 10 kA, ch-ka C, 6 A, 1+N-bieg. | D116: NAA | E116: 97.2 | F116: 0 | G116: 97.2 | H116: 8592765003805 | I116: 6 | J116: 18592765003802 | K116: 72 | L116: 28592765003809 | M116: 8536201090 | N116: 0.24
A117: 100380 | B117: Ex9BH 1PN C8 | C117: Wył. nadpr. 10 kA, ch-ka C, 8 A, 1+N-bieg. | D117: NAA | E117: 97.2 | F117: 0 | G117: 97.2 | H117: 8592765003812 | I117: 6 | J117: 18592765003819 | K117: 72 | L117: 28592765003816 | M117: 8536201090 | N117: 0.24
A118: 100381 | B118: Ex9BH 1PN C10 | C118: Wył. nadpr. 10 kA, ch-ka C, 10 A, 1+N-bieg. | D118: NAA | E118: 77.5 | F118: 0 | G118: 77.5 | H118: 8592765003829 | I118: 6 | J118: 18592765003826 | K118: 72 | L118: 28592765003823 | M118: 8536201090 | N118: 0.24
A119: 100382 | B119: Ex9BH 1PN C13 | C119: Wył. nadpr. 10 kA, ch-ka C, 13 A, 1+N-bieg. | D119: NAA | E119: 77.5 | F119: 0 | G119: 77.5 | H119: 8592765003836 | I119: 6 | J119: 18592765003833 | K119: 72 | L119: 28592765003830 | M119: 8536201090 | N119: 0.24
A120: 100383 | B120: Ex9BH 1PN C16 | C120: Wył. nadpr. 10 kA, ch-ka C, 16 A, 1+N-bieg. | D120: NAA | E120: 77.5 | F120: 0 | G120: 77.5 | H120: 8592765003843 | I120: 6 | J120: 18592765003840 | K120: 72 | L120: 28592765003847 | M120: 8536201090 | N120: 0.24
A121: 100384 | B121: Ex9BH 1PN C20 | C121: Wył. nadpr. 10 kA, ch-ka C, 20 A, 1+N-bieg. | D121: NAA | E121: 77.5 | F121: 0 | G121: 77.5 | H121: 8592765003850 | I121: 6 | J121: 18592765003857 | K121: 72 | L121: 28592765003854 | M121: 8536201090 | N121: 0.24
A122: 100385 | B122: Ex9BH 1PN C25 | C122: Wył. nadpr. 10 kA, ch-ka C, 25 A, 1+N-bieg. | D122: NAA | E122: 77.5 | F122: 0 | G122: 77.5 | H122: 8592765003867 | I122: 6 | J122: 18592765003864 | K122: 72 | L122: 28592765003861 | M122: 8536201090 | N122: 0.24
A123: 100386 | B123: Ex9BH 1PN C32 | C123: Wył. nadpr. 10 kA, ch-ka C, 32 A, 1+N-bieg. | D123: NAA | E123: 77.5 | F123: 0 | G123: 77.5 | H123: 8592765003874 | I123: 6 | J123: 18592765003871 | K123: 72 | L123: 28592765003878 | M123: 8536201090 | N123: 0.24
A124: 100387 | B124: Ex9BH 1PN C40 | C124: Wył. nadpr. 10 kA, ch-ka C, 40 A, 1+N-bieg. | D124: NAA | E124: 88.9 | F124: 0 | G124: 88.9 | H124: 8592765003881 | I124: 6 | J124: 18592765003888 | K124: 72 | L124: 28592765003885 | M124: 8536201090 | N124: 0.24
A125: 100388 | B125: Ex9BH 1PN C50 | C125: Wył. nadpr. 10 kA, ch-ka C, 50 A, 1+N-bieg. | D125: NAA | E125: 128.1 | F125: 0 | G125: 128.1 | H125: 8592765003898 | I125: 6 | J125: 18592765003895 | K125: 72 | L125: 28592765003892 | M125: 8536201090 | N125: 0.24
A126: 100389 | B126: Ex9BH 1PN C63 | C126: Wył. nadpr. 10 kA, ch-ka C, 63 A, 1+N-bieg. | D126: NAA | E126: 143.6 | F126: 0 | G126: 143.6 | H126: 8592765003904 | I126: 6 | J126: 18592765003901 | K126: 72 | L126: 28592765003908 | M126: 8536201090 | N126: 0.24
A127: 100390 | B127: Ex9BH 2P C1 | C127: Wył. nadpr. 10 kA, ch-ka C, 1 A, 2-bieg. | D127: NAA | E127: 123 | F127: 0 | G127: 123 | H127: 8592765003911 | I127: 6 | J127: 18592765003918 | K127: 72 | L127: 28592765003915 | M127: 8536201090 | N127: 0.24
A128: 100391 | B128: Ex9BH 2P C2 | C128: Wył. nadpr. 10 kA, ch-ka C, 2 A, 2-bieg. | D128: NAA | E128: 107.5 | F128: 0 | G128: 107.5 | H128: 8592765003928 | I128: 6 | J128: 18592765003925 | K128: 72 | L128: 28592765003922 | M128: 8536201090 | N128: 0.24
A129: 100392 | B129: Ex9BH 2P C3 | C129: Wył. nadpr. 10 kA, ch-ka C, 3 A, 2-bieg. | D129: NAA | E129: 89.9 | F129: 0 | G129: 89.9 | H129: 8592765003935 | I129: 6 | J129: 18592765003932 | K129: 72 | L129: 28592765003939 | M129: 8536201090 | N129: 0.24
A130: 100393 | B130: Ex9BH 2P C4 | C130: Wył. nadpr. 10 kA, ch-ka C, 4 A, 2-bieg. | D130: NAA | E130: 97.2 | F130: 0 | G130: 97.2 | H130: 8592765003942 | I130: 6 | J130: 18592765003949 | K130: 72 | L130: 28592765003946 | M130: 8536201090 | N130: 0.24
A131: 100394 | B131: Ex9BH 2P C6 | C131: Wył. nadpr. 10 kA, ch-ka C, 6 A, 2-bieg. | D131: NAA | E131: 97.2 | F131: 0 | G131: 97.2 | H131: 8592765003959 | I131: 6 | J131: 18592765003956 | K131: 72 | L131: 28592765003953 | M131: 8536201090 | N131: 0.24
A132: 100395 | B132: Ex9BH 2P C8 | C132: Wył. nadpr. 10 kA, ch-ka C, 8 A, 2-bieg. | D132: NAA | E132: 77.5 | F132: 0 | G132: 77.5 | H132: 8592765003966 | I132: 6 | J132: 18592765003963 | K132: 72 | L132: 28592765003960 | M132: 8536201090 | N132: 0.24
A133: 100396 | B133: Ex9BH 2P C10 | C133: Wył. nadpr. 10 kA, ch-ka C, 10 A, 2-bieg. | D133: NAA | E133: 77.5 | F133: 0 | G133: 77.5 | H133: 8592765003973 | I133: 6 | J133: 18592765003970 | K133: 72 | L133: 28592765003977 | M133: 8536201090 | N133: 0.24
A134: 100397 | B134: Ex9BH 2P C13 | C134: Wył. nadpr. 10 kA, ch-ka C, 13 A, 2-bieg. | D134: NAA | E134: 77.5 | F134: 0 | G134: 77.5 | H134: 8592765003980 | I134: 6 | J134: 18592765003987 | K134: 72 | L134: 28592765003984 | M134: 8536201090 | N134: 0.24
A135: 100398 | B135: Ex9BH 2P C16 | C135: Wył. nadpr. 10 kA, ch-ka C, 16 A, 2-bieg. | D135: NAA | E135: 77.5 | F135: =NAA -> 0 | G135: =E135*(1-F135) -> 77.5 | H135: 8592765003997 | I135: 6 | J135: 18592765003994 | K135: 72 | L135: 28592765003991 | M135: 8536201090 | N135: 0.24
A136: 100399 | B136: Ex9BH 2P C20 | C136: Wył. nadpr. 10 kA, ch-ka C, 20 A, 2-bieg. | D136: NAA | E136: 77.5 | F136: 0 | G136: 77.5 | H136: 8592765004000 | I136: 6 | J136: 18592765004007 | K136: 72 | L136: 28592765004004 | M136: 8536201090 | N136: 0.24
A137: 100400 | B137: Ex9BH 2P C25 | C137: Wył. nadpr. 10 kA, ch-ka C, 25 A, 2-bieg. | D137: NAA | E137: 77.5 | F137: 0 | G137: 77.5 | H137: 8592765004017 | I137: 6 | J137: 18592765004014 | K137: 72 | L137: 28592765004011 | M137: 8536201090 | N137: 0.24
A138: 100401 | B138: Ex9BH 2P C32 | C138: Wył. nadpr. 10 kA, ch-ka C, 32 A, 2-bieg. | D138: NAA | E138: 77.5 | F138: 0 | G138: 77.5 | H138: 8592765004024 | I138: 6 | J138: 18592765004021 | K138: 72 | L138: 28592765004028 | M138: 8536201090 | N138: 0.24
A139: 100402 | B139: Ex9BH 2P C40 | C139: Wył. nadpr. 10 kA, ch-ka C, 40 A, 2-bieg. | D139: NAA | E139: 88.9 | F139: 0 | G139: 88.9 | H139: 8592765004031 | I139: 6 | J139: 18592765004038 | K139: 72 | L139: 28592765004035 | M139: 8536201090 | N139: 0.24
A140: 100403 | B140: Ex9BH 2P C50 | C140: Wył. nadpr. 10 kA, ch-ka C, 50 A, 2-bieg. | D140: NAA | E140: 134.3 | F140: 0 | G140: 134.3 | H140: 8592765004048 | I140: 6 | J140: 18592765004045 | K140: 72 | L140: 28592765004042 | M140: 8536201090 | N140: 0.24
A141: 100404 | B141: Ex9BH 2P C63 | C141: Wył. nadpr. 10 kA, ch-ka C, 63 A, 2-bieg. | D141: NAA | E141: 143.6 | F141: 0 | G141: 143.6 | H141: 8592765004055 | I141: 6 | J141: 18592765004052 | K141: 72 | L141: 28592765004059 | M141: 8536201090 | N141: 0.24
A142: 100405 | B142: Ex9BH 3P C1 | C142: Wył. nadpr. 10 kA, ch-ka C, 1 A, 3-bieg. | D142: NAA | E142: 158.1 | F142: 0 | G142: 158.1 | H142: 8592765004062 | I142: 4 | J142: 18592765004069 | K142: 48 | L142: 28592765004066 | M142: 8536201090 | N142: 0.36
A143: 100406 | B143: Ex9BH 3P C2 | C143: Wył. nadpr. 10 kA, ch-ka C, 2 A, 3-bieg. | D143: NAA | E143: 125 | F143: 0 | G143: 125 | H143: 8592765004079 | I143: 4 | J143: 18592765004076 | K143: 48 | L143: 28592765004073 | M143: 8536201090 | N143: 0.36
A144: 100407 | B144: Ex9BH 3P C3 | C144: Wył. nadpr. 10 kA, ch-ka C, 3 A, 3-bieg. | D144: NAA | E144: 121.9 | F144: 0 | G144: 121.9 | H144: 8592765004086 | I144: 4 | J144: 18592765004083 | K144: 48 | L144: 28592765004080 | M144: 8536201090 | N144: 0.36
A145: 100408 | B145: Ex9BH 3P C4 | C145: Wył. nadpr. 10 kA, ch-ka C, 4 A, 3-bieg. | D145: NAA | E145: 103.3 | F145: 0 | G145: 103.3 | H145: 8592765004093 | I145: 4 | J145: 18592765004090 | K145: 48 | L145: 28592765004097 | M145: 8536201090 | N145: 0.36
A146: 100409 | B146: Ex9BH 3P C6 | C146: Wył. nadpr. 10 kA, ch-ka C, 6 A, 3-bieg. | D146: NAA | E146: 86.8 | F146: 0 | G146: 86.8 | H146: 8592765004109 | I146: 4 | J146: 18592765004106 | K146: 48 | L146: 28592765004103 | M146: 8536201090 | N146: 0.36
A147: 100410 | B147: Ex9BH 3P C8 | C147: Wył. nadpr. 10 kA, ch-ka C, 8 A, 3-bieg. | D147: NAA | E147: 86.8 | F147: 0 | G147: 86.8 | H147: 8592765004116 | I147: 4 | J147: 18592765004113 | K147: 48 | L147: 28592765004110 | M147: 8536201090 | N147: 0.36
A148: 100411 | B148: Ex9BH 3P C10 | C148: Wył. nadpr. 10 kA, ch-ka C, 10 A, 3-bieg. | D148: NAA | E148: 80.6 | F148: 0 | G148: 80.6 | H148: 8592765004123 | I148: 4 | J148: 18592765004120 | K148: 48 | L148: 28592765004127 | M148: 8536201090 | N148: 0.36
A149: 100412 | B149: Ex9BH 3P C13 | C149: Wył. nadpr. 10 kA, ch-ka C, 13 A, 3-bieg. | D149: NAA | E149: 80.6 | F149: 0 | G149: 80.6 | H149: 8592765004130 | I149: 4 | J149: 18592765004137 | K149: 48 | L149: 28592765004134 | M149: 8536201090 | N149: 0.36
A150: 100413 | B150: Ex9BH 3P C16 | C150: Wył. nadpr. 10 kA, ch-ka C, 16 A, 3-bieg. | D150: NAA | E150: 80.6 | F150: 0 | G150: 80.6 | H150: 8592765004147 | I150: 4 | J150: 18592765004144 | K150: 48 | L150: 28592765004141 | M150: 8536201090 | N150: 0.36
A151: 100414 | B151: Ex9BH 3P C20 | C151: Wył. nadpr. 10 kA, ch-ka C, 20 A, 3-bieg. | D151: NAA | E151: 80.6 | F151: 0 | G151: 80.6 | H151: 8592765004154 | I151: 4 | J151: 18592765004151 | K151: 48 | L151: 28592765004158 | M151: 8536201090 | N151: 0.36
A152: 100415 | B152: Ex9BH 3P C25 | C152: Wył. nadpr. 10 kA, ch-ka C, 25 A, 3-bieg. | D152: NAA | E152: 80.6 | F152: 0 | G152: 80.6 | H152: 8592765004161 | I152: 4 | J152: 18592765004168 | K152: 48 | L152: 28592765004165 | M152: 8536201090 | N152: 0.36
A153: 100416 | B153: Ex9BH 3P C32 | C153: Wył. nadpr. 10 kA, ch-ka C, 32 A, 3-bieg. | D153: NAA | E153: 89.9 | F153: 0 | G153: 89.9 | H153: 8592765004178 | I153: 4 | J153: 18592765004175 | K153: 48 | L153: 28592765004172 | M153: 8536201090 | N153: 0.36
A154: 100417 | B154: Ex9BH 3P C40 | C154: Wył. nadpr. 10 kA, ch-ka C, 40 A, 3-bieg. | D154: NAA | E154: 107.5 | F154: 0 | G154: 107.5 | H154: 8592765004185 | I154: 4 | J154: 18592765004182 | K154: 48 | L154: 28592765004189 | M154: 8536201090 | N154: 0.36
A155: 100418 | B155: Ex9BH 3P C50 | C155: Wył. nadpr. 10 kA, ch-ka C, 50 A, 3-bieg. | D155: NAA | E155: 161.2 | F155: 0 | G155: 161.2 | H155: 8592765004192 | I155: 4 | J155: 18592765004199 | K155: 48 | L155: 28592765004196 | M155: 8536201090 | N155: 0.36
A156: 100419 | B156: Ex9BH 3P C63 | C156: Wył. nadpr. 10 kA, ch-ka C, 63 A, 3-bieg. | D156: NAA | E156: 164.3 | F156: 0 | G156: 164.3 | H156: 8592765004208 | I156: 4 | J156: 18592765004205 | K156: 48 | L156: 28592765004202 | M156: 8536201090 | N156: 0.36
A157: 100420 | B157: Ex9BH 3PN C1 | C157: Wył. nadpr. 10 kA, ch-ka C, 1 A, 3+N-bieg. | D157: NAA | E157: 200.5 | F157: 0 | G157: 200.5 | H157: 8592765004215 | I157: 3 | J157: 18592765004212 | K157: 36 | L157: 28592765004219 | M157: 8536201090 | N157: 0.48
A158: 100421 | B158: Ex9BH 3PN C2 | C158: Wył. nadpr. 10 kA, ch-ka C, 2 A, 3+N-bieg. | D158: NAA | E158: 196.3 | F158: 0 | G158: 196.3 | H158: 8592765004222 | I158: 3 | J158: 18592765004229 | K158: 36 | L158: 28592765004226 | M158: 8536201090 | N158: 0.48
A159: 100422 | B159: Ex9BH 3PN C3 | C159: Wył. nadpr. 10 kA, ch-ka C, 3 A, 3+N-bieg. | D159: NAA | E159: 168.4 | F159: 0 | G159: 168.4 | H159: 8592765004239 | I159: 3 | J159: 18592765004236 | K159: 36 | L159: 28592765004233 | M159: 8536201090 | N159: 0.48
A160: 100423 | B160: Ex9BH 3PN C4 | C160: Wył. nadpr. 10 kA, ch-ka C, 4 A, 3+N-bieg. | D160: NAA | E160: 177.7 | F160: 0 | G160: 177.7 | H160: 8592765004246 | I160: 3 | J160: 18592765004243 | K160: 36 | L160: 28592765004240 | M160: 8536201090 | N160: 0.48
A161: 100424 | B161: Ex9BH 3PN C6 | C161: Wył. nadpr. 10 kA, ch-ka C, 6 A, 3+N-bieg. | D161: NAA | E161: 177.7 | F161: 0 | G161: 177.7 | H161: 8592765004253 | I161: 3 | J161: 18592765004250 | K161: 36 | L161: 28592765004257 | M161: 8536201090 | N161: 0.48
A162: 100425 | B162: Ex9BH 3PN C8 | C162: Wył. nadpr. 10 kA, ch-ka C, 8 A, 3+N-bieg. | D162: NAA | E162: 177.7 | F162: 0 | G162: 177.7 | H162: 8592765004260 | I162: 3 | J162: 18592765004267 | K162: 36 | L162: 28592765004264 | M162: 8536201090 | N162: 0.48
A163: 100426 | B163: Ex9BH 3PN C10 | C163: Wył. nadpr. 10 kA, ch-ka C, 10 A, 3+N-bieg. | D163: NAA | E163: 129.2 | F163: 0 | G163: 129.2 | H163: 8592765004277 | I163: 3 | J163: 18592765004274 | K163: 36 | L163: 28592765004271 | M163: 8536201090 | N163: 0.48
A164: 100427 | B164: Ex9BH 3PN C13 | C164: Wył. nadpr. 10 kA, ch-ka C, 13 A, 3+N-bieg. | D164: NAA | E164: 129.2 | F164: 0 | G164: 129.2 | H164: 8592765004284 | I164: 3 | J164: 18592765004281 | K164: 36 | L164: 28592765004288 | M164: 8536201090 | N164: 0.48
A165: 100428 | B165: Ex9BH 3PN C16 | C165: Wył. nadpr. 10 kA, ch-ka C, 16 A, 3+N-bieg. | D165: NAA | E165: 129.2 | F165: 0 | G165: 129.2 | H165: 8592765004291 | I165: 3 | J165: 18592765004298 | K165: 36 | L165: 28592765004295 | M165: 8536201090 | N165: 0.48
A166: 100429 | B166: Ex9BH 3PN C20 | C166: Wył. nadpr. 10 kA, ch-ka C, 20 A, 3+N-bieg. | D166: NAA | E166: 129.2 | F166: 0 | G166: 129.2 | H166: 8592765004307 | I166: 3 | J166: 18592765004304 | K166: 36 | L166: 28592765004301 | M166: 8536201090 | N166: 0.48
A167: 100430 | B167: Ex9BH 3PN C25 | C167: Wył. nadpr. 10 kA, ch-ka C, 25 A, 3+N-bieg. | D167: NAA | E167: 129.2 | F167: 0 | G167: 129.2 | H167: 8592765004314 | I167: 3 | J167: 18592765004311 | K167: 36 | L167: 28592765004318 | M167: 8536201090 | N167: 0.48
A168: 100431 | B168: Ex9BH 3PN C32 | C168: Wył. nadpr. 10 kA, ch-ka C, 32 A, 3+N-bieg. | D168: NAA | E168: 129.2 | F168: 0 | G168: 129.2 | H168: 8592765004321 | I168: 3 | J168: 18592765004328 | K168: 36 | L168: 28592765004325 | M168: 8536201090 | N168: 0.48
A169: 100432 | B169: Ex9BH 3PN C40 | C169: Wył. nadpr. 10 kA, ch-ka C, 40 A, 3+N-bieg. | D169: NAA | E169: 177.7 | F169: 0 | G169: 177.7 | H169: 8592765004338 | I169: 3 | J169: 18592765004335 | K169: 36 | L169: 28592765004332 | M169: 8536201090 | N169: 0.48
A170: 100433 | B170: Ex9BH 3PN C50 | C170: Wył. nadpr. 10 kA, ch-ka C, 50 A, 3+N-bieg. | D170: NAA | E170: 275.9 | F170: 0 | G170: 275.9 | H170: 8592765004345 | I170: 3 | J170: 18592765004342 | K170: 36 | L170: 28592765004349 | M170: 8536201090 | N170: 0.48
A171: 100434 | B171: Ex9BH 3PN C63 | C171: Wył. nadpr. 10 kA, ch-ka C, 63 A, 3+N-bieg. | D171: NAA | E171: 287.2 | F171: 0 | G171: 287.2 | H171: 8592765004352 | I171: 3 | J171: 18592765004359 | K171: 36 | L171: 28592765004356 | M171: 8536201090 | N171: 0.48
A172: 100435 | B172: Ex9BH 4P C1 | C172: Wył. nadpr. 10 kA, ch-ka C, 1 A, 4-bieg. | D172: NAA | E172: 200.5 | F172: 0 | G172: 200.5 | H172: 8592765004369 | I172: 3 | J172: 18592765004366 | K172: 36 | L172: 28592765004363 | M172: 8536201090 | N172: 0.48
A173: 100436 | B173: Ex9BH 4P C2 | C173: Wył. nadpr. 10 kA, ch-ka C, 2 A, 4-bieg. | D173: NAA | E173: 196.3 | F173: 0 | G173: 196.3 | H173: 8592765004376 | I173: 3 | J173: 18592765004373 | K173: 36 | L173: 28592765004370 | M173: 8536201090 | N173: 0.48
A174: 100437 | B174: Ex9BH 4P C3 | C174: Wył. nadpr. 10 kA, ch-ka C, 3 A, 4-bieg. | D174: NAA | E174: 168.4 | F174: 0 | G174: 168.4 | H174: 8592765004383 | I174: 3 | J174: 18592765004380 | K174: 36 | L174: 28592765004387 | M174: 8536201090 | N174: 0.48
A175: 100438 | B175: Ex9BH 4P C4 | C175: Wył. nadpr. 10 kA, ch-ka C, 4 A, 4-bieg. | D175: NAA | E175: 177.7 | F175: 0 | G175: 177.7 | H175: 8592765004390 | I175: 3 | J175: 18592765004397 | K175: 36 | L175: 28592765004394 | M175: 8536201090 | N175: 0.48
A176: 100439 | B176: Ex9BH 4P C6 | C176: Wył. nadpr. 10 kA, ch-ka C, 6 A, 4-bieg. | D176: NAA | E176: 177.7 | F176: 0 | G176: 177.7 | H176: 8592765004406 | I176: 3 | J176: 18592765004403 | K176: 36 | L176: 28592765004400 | M176: 8536201090 | N176: 0.48
A177: 100440 | B177: Ex9BH 4P C8 | C177: Wył. nadpr. 10 kA, ch-ka C, 8 A, 4-bieg. | D177: NAA | E177: 177.7 | F177: 0 | G177: 177.7 | H177: 8592765004413 | I177: 3 | J177: 18592765004410 | K177: 36 | L177: 28592765004417 | M177: 8536201090 | N177: 0.48
A178: 100441 | B178: Ex9BH 4P C10 | C178: Wył. nadpr. 10 kA, ch-ka C, 10 A, 4-bieg. | D178: NAA | E178: 129.2 | F178: 0 | G178: 129.2 | H178: 8592765004420 | I178: 3 | J178: 18592765004427 | K178: 36 | L178: 28592765004424 | M178: 8536201090 | N178: 0.48
A179: 100442 | B179: Ex9BH 4P C13 | C179: Wył. nadpr. 10 kA, ch-ka C, 13 A, 4-bieg. | D179: NAA | E179: 129.2 | F179: 0 | G179: 129.2 | H179: 8592765004437 | I179: 3 | J179: 18592765004434 | K179: 36 | L179: 28592765004431 | M179: 8536201090 | N179: 0.48
A180: 100443 | B180: Ex9BH 4P C16 | C180: Wył. nadpr. 10 kA, ch-ka C, 16 A, 4-bieg. | D180: NAA | E180: 129.2 | F180: 0 | G180: 129.2 | H180: 8592765004444 | I180: 3 | J180: 18592765004441 | K180: 36 | L180: 28592765004448 | M180: 8536201090 | N180: 0.48
A181: 100444 | B181: Ex9BH 4P C20 | C181: Wył. nadpr. 10 kA, ch-ka C, 20 A, 4-bieg. | D181: NAA | E181: 129.2 | F181: 0 | G181: 129.2 | H181: 8592765004451 | I181: 3 | J181: 18592765004458 | K181: 36 | L181: 28592765004455 | M181: 8536201090 | N181: 0.48
A182: 100445 | B182: Ex9BH 4P C25 | C182: Wył. nadpr. 10 kA, ch-ka C, 25 A, 4-bieg. | D182: NAA | E182: 129.2 | F182: 0 | G182: 129.2 | H182: 8592765004468 | I182: 3 | J182: 18592765004465 | K182: 36 | L182: 28592765004462 | M182: 8536201090 | N182: 0.48
A183: 100446 | B183: Ex9BH 4P C32 | C183: Wył. nadpr. 10 kA, ch-ka C, 32 A, 4-bieg. | D183: NAA | E183: 129.2 | F183: 0 | G183: 129.2 | H183: 8592765004475 | I183: 3 | J183: 18592765004472 | K183: 36 | L183: 28592765004479 | M183: 8536201090 | N183: 0.48
A184: 100447 | B184: Ex9BH 4P C40 | C184: Wył. nadpr. 10 kA, ch-ka C, 40 A, 4-bieg. | D184: NAA | E184: 177.7 | F184: 0 | G184: 177.7 | H184: 8592765004482 | I184: 3 | J184: 18592765004489 | K184: 36 | L184: 28592765004486 | M184: 8536201090 | N184: 0.48
A185: 100448 | B185: Ex9BH 4P C50 | C185: Wył. nadpr. 10 kA, ch-ka C, 50 A, 4-bieg. | D185: NAA | E185: 275.9 | F185: 0 | G185: 275.9 | H185: 8592765004499 | I185: 3 | J185: 18592765004496 | K185: 36 | L185: 28592765004493 | M185: 8536201090 | N185: 0.48
A186: 100449 | B186: Ex9BH 4P C63 | C186: Wył. nadpr. 10 kA, ch-ka C, 63 A, 4-bieg. | D186: NAA | E186: 287.2 | F186: 0 | G186: 287.2 | H186: 8592765004505 | I186: 3 | J186: 18592765004502 | K186: 36 | L186: 28592765004509 | M186: 8536201090 | N186: 0.48
A187: 100450 | B187: Ex9BH 1P D1 | C187: Wył. nadpr. 10 kA, ch-ka D, 1 A, 1-bieg. | D187: NAA | E187: 75.5 | F187: 0 | G187: 75.5 | H187: 8592765004512 | I187: 12 | J187: 18592765004519 | K187: 144 | L187: 28592765004516 | M187: 8536201090 | N187: 0.12
A188: 100451 | B188: Ex9BH 1P D2 | C188: Wył. nadpr. 10 kA, ch-ka D, 2 A, 1-bieg. | D188: NAA | E188: 65.1 | F188: 0 | G188: 65.1 | H188: 8592765004529 | I188: 12 | J188: 18592765004526 | K188: 144 | L188: 28592765004523 | M188: 8536201090 | N188: 0.12
A189: 100452 | B189: Ex9BH 1P D3 | C189: Wył. nadpr. 10 kA, ch-ka D, 3 A, 1-bieg. | D189: NAA | E189: 64.1 | F189: 0 | G189: 64.1 | H189: 8592765004536 | I189: 12 | J189: 18592765004533 | K189: 144 | L189: 28592765004530 | M189: 8536201090 | N189: 0.12
A190: 100453 | B190: Ex9BH 1P D4 | C190: Wył. nadpr. 10 kA, ch-ka D, 4 A, 1-bieg. | D190: NAA | E190: 65.1 | F190: 0 | G190: 65.1 | H190: 8592765004543 | I190: 12 | J190: 18592765004540 | K190: 144 | L190: 28592765004547 | M190: 8536201090 | N190: 0.12
A191: 100454 | B191: Ex9BH 1P D6 | C191: Wył. nadpr. 10 kA, ch-ka D, 6 A, 1-bieg. | D191: NAA | E191: 65.1 | F191: 0 | G191: 65.1 | H191: 8592765004550 | I191: 12 | J191: 18592765004557 | K191: 144 | L191: 28592765004554 | M191: 8536201090 | N191: 0.12
A192: 100455 | B192: Ex9BH 1P D8 | C192: Wył. nadpr. 10 kA, ch-ka D, 8 A, 1-bieg. | D192: NAA | E192: 65.1 | F192: 0 | G192: 65.1 | H192: 8592765004567 | I192: 12 | J192: 18592765004564 | K192: 144 | L192: 28592765004561 | M192: 8536201090 | N192: 0.12
A193: 100456 | B193: Ex9BH 1P D10 | C193: Wył. nadpr. 10 kA, ch-ka D, 10 A, 1-bieg. | D193: NAA | E193: 48.4 | F193: 0 | G193: 48.4 | H193: 8592765004574 | I193: 12 | J193: 18592765004571 | K193: 144 | L193: 28592765004578 | M193: 8536201090 | N193: 0.12
A194: 100457 | B194: Ex9BH 1P D13 | C194: Wył. nadpr. 10 kA, ch-ka D, 13 A, 1-bieg. | D194: NAA | E194: 48.4 | F194: 0 | G194: 48.4 | H194: 8592765004581 | I194: 12 | J194: 18592765004588 | K194: 144 | L194: 28592765004585 | M194: 8536201090 | N194: 0.12
A195: 100458 | B195: Ex9BH 1P D16 | C195: Wył. nadpr. 10 kA, ch-ka D, 16 A, 1-bieg. | D195: NAA | E195: 48.4 | F195: 0 | G195: 48.4 | H195: 8592765004598 | I195: 12 | J195: 18592765004595 | K195: 144 | L195: 28592765004592 | M195: 8536201090 | N195: 0.12
A196: 100459 | B196: Ex9BH 1P D20 | C196: Wył. nadpr. 10 kA, ch-ka D, 20 A, 1-bieg. | D196: NAA | E196: 48.4 | F196: 0 | G196: 48.4 | H196: 8592765004604 | I196: 12 | J196: 18592765004601 | K196: 144 | L196: 28592765004608 | M196: 8536201090 | N196: 0.12
A197: 100460 | B197: Ex9BH 1P D25 | C197: Wył. nadpr. 10 kA, ch-ka D, 25 A, 1-bieg. | D197: NAA | E197: 48.4 | F197: 0 | G197: 48.4 | H197: 8592765004611 | I197: 12 | J197: 18592765004618 | K197: 144 | L197: 28592765004615 | M197: 8536201090 | N197: 0.12
A198: 100461 | B198: Ex9BH 1P D32 | C198: Wył. nadpr. 10 kA, ch-ka D, 32 A, 1-bieg. | D198: NAA | E198: 48.4 | F198: 0 | G198: 48.4 | H198: 8592765004628 | I198: 12 | J198: 18592765004625 | K198: 144 | L198: 28592765004622 | M198: 8536201090 | N198: 0.12
A199: 100462 | B199: Ex9BH 1P D40 | C199: Wył. nadpr. 10 kA, ch-ka D, 40 A, 1-bieg. | D199: NAA | E199: 48.4 | F199: =NAA -> 0 | G199: =E199*(1-F199) -> 48.4 | H199: 8592765004635 | I199: 12 | J199: 18592765004632 | K199: 144 | L199: 28592765004639 | M199: 8536201090 | N199: 0.12
A200: 100463 | B200: Ex9BH 1P D50 | C200: Wył. nadpr. 10 kA, ch-ka D, 50 A, 1-bieg. | D200: NAA | E200: 91 | F200: 0 | G200: 91 | H200: 8592765004642 | I200: 12 | J200: 18592765004649 | K200: 144 | L200: 28592765004646 | M200: 8536201090 | N200: 0.12
A201: 100464 | B201: Ex9BH 1P D63 | C201: Wył. nadpr. 10 kA, ch-ka D, 63 A, 1-bieg. | D201: NAA | E201: 91 | F201: 0 | G201: 91 | H201: 8592765004659 | I201: 12 | J201: 18592765004656 | K201: 144 | L201: 28592765004653 | M201: 8536201090 | N201: 0.12
A202: 100465 | B202: Ex9BH 1PN D1 | C202: Wył. nadpr. 10 kA, ch-ka D, 1 A, 1+N-bieg. | D202: NAA | E202: 79.6 | F202: 0 | G202: 79.6 | H202: 8592765004666 | I202: 6 | J202: 18592765004663 | K202: 72 | L202: 28592765004660 | M202: 8536201090 | N202: 0.24
... 5273 more rows

Sheet Grupy rabatowe
A1: Grupa rabatowa | B1: Opis | C1: Wielkość rabatu
A2: NA | B2: Aparatura instalacyjna | C2: 0
A3: NAA | B3: Wyłączniki nadprądowe 10 kA | C3: =NA -> 0
A4: NAB | B4: Wyłączniki nadprądowe 6 kA | C4: 0
A5: NAC | B5: Wyłączniki różnicowoprądowe 10 kA | C5: 0
A6: NAD | B6: Wyłączniki różnicowoprądowe 6 kA | C6: 0
A7: NAE | B7: Wyłączniki różnicowoprądowe z zabezpieczeniem nadprądowym 10 kA | C7: 0
A8: NAF | B8: Wyłączniki różnicowoprądowe z zabezpieczeniem nadprądowym 6 kA | C8: 0
A9: NAG | B9: Bloki różnicowoprądowe | C9: 0
A10: NAH | B10: Modułowe rozłączniki izolacyjne | C10: =NA -> 0
A11: NAI | B11: Wyłączniki nadprądowe Ex9PN-N, 1+N-bieg., szerokość 1 moduł, 6 kA | C11: 0
A12: NAL | B12: Wyłączniki nadprądowe DC 10 kA, niespolaryzowane | C12: 0
A13: NAM | B13: Wyłączniki nadprądowe DC 6 kA, niespolaryzowane | C13: 0
A14: NAN | B14: Rozłączniki izolacyjne DC do aplikacji fotowoltaicznych | C14: =NA -> 0
A15: NAO | B15: Ogranicznik przepięć DC Ex9UP typ II do aplikacji fotowoltaicznych | C15: 0
A16: NAP | B16: Wyłączniki nadprądowe DC 10 kA do aplikacji fotowoltaicznych, niespolaryzowane | C16: 0
A17: NAQ | B17: Wyłączniki nadprądowe DC 6 kA do aplikacji fotowoltaicznych, niespolaryzowane | C17: 0
A18: NAR | B18: Ogranicznik przepięć AC Ex9UE typ I+II, II | C18: =NA -> 0
A19: NAS | B19: Przekaźniki i styczniki instalacyjne (modułowe) | C19: 0
A20: NAU | B20: Przełącznik modułowy, Lampka sygnalizacyjna i dzwony | C20: 0
A21: NAV | B21: Wyłączniki nadprądowe DC 10 kA, spolaryzowane | C21: 0
A22: NAW | B22: Wyłączniki nadprądowe 125A | C22: =NA -> 0
A23: NAX | B23: Zegary sterownicze, wyłączniki zmierzchowe, wyłącznik schodowy | C23: =NA -> 0
A24: NAZ | B24: Licznik energii | C24: =NA -> 0
A25: NAAA | B25: Elektroniczny wyłącznik różnicowoprądowy z zabezpieczeniem nadprądowym, Ex9NLE, 6kA | C25: =NA -> 0
A26: NAAB | B26: Wyłącznik nadprądowy typu slim 6 kA | C26: =NA -> 0
A28: NB | B28: Aparatura przemysłowa | C28: 0
A29: NBA | B29: Styczniki, styczniki nawrotne | C29: =NB -> 0
A30: NBB | B30: Przekaźniki przeciążeniowe | C30: 0
A31: NBC | B31: Styczniki do baterii kondensatorów, Styczniki nawrotne | C31: 0
A32: NBD | B32: Styczniki przemysłowe Ci | C32: 0
A33: NBF | B33: Aparatura pulpitowa | C33: 0
A34: NBG | B34: Wyłączniki silnikowe | C34: 0
A35: NBH | C35: 0
A37: NC | B37: Wyłączniki i rozłączniki kompaktowe | C37: 0
A38: NCA | B38: Wyłączniki i rozłączniki kompaktowe AC | C38: =NC -> 0
A39: NCB | B39: Wyłączniki i rozłączniki kompaktowe DC | C39: 0
A40: NCC | B40: Wyłączniki powietrzne | C40: 0
A41: NCD | B41: Rozłączniki kompaktowe AC | C41: 0
A42: NCE | B42: Rozłączniki kompaktowe DC | C42: 0
A43: NCF | B43: Wyłącznik kompaktowy z elektronicznym wyzwalaczem | C43: 0
A45: ND | B45: Obudowy dystrybucyjne oraz systemy łączeniowe | C45: 0
A46: NDA | B46: Plastikowe obudowy instalacyjne | C46: =ND -> 0
A47: NDB | B47: Listwy grzebieniowe | C47: 0
A48: NDC | B48: Plastikowe obudowy instalacyjne z drzwiami metalowymi | C48: 0
A49: NDD | B49: Obudowy metalowe | C49: 0
A50: NDE | B50: Bloki dystrybucyjny | C50: 0
A51: NDF | B51: Plastikowe obudowy instalacyjne przystosowane do ścian pustych | C51: 0
A52: NDG | B52: Obudowa poliestrowa GRP, FHS | C52: =ND -> 0
A53: NDH | B53: Obudowa metalowa IP66 | C53: =ND -> 0
A55: NE | B55: Rozłaczniki bezpiecznikowe | C55: 0
A56: NEA | B56: Podstawa bezpiecznikowa DC | C56: =NE -> 0
A57: NEB | B57: Podstawy bezpiecznikowe cylindryczne | C57: =NE -> 0
A59: NF | B59: Obudowy DC dla inst. fotowoltaicznych | C59: 0
A60: NFB | B60: Plast. obudowa DC dla PV | C60: =NF -> 0
A62: NG | B62: Urządzenia do aplikacji fotowoltaicznych | C62: 0
A63: NGC | B63: Urządzenia monitorujące | C63: =NG -> 0
A64: NGD | B64: Ładowarki do samochodów elektrycznych | C64: =NG -> 0

Sheet Zamówienie
A1: Nr zamówienia:
A2: Sprzedający: | G2: Data:
A3: NOARK Electric Sp. z o.o. | D3: REGON: 145920395
A4: Św. Michała 62 | D4: NIP: 1132852232
A5: 61-005 Poznań | D5: Osoba kontaktowa:
A6: Polska
A7: Kupujący:
A8: NOARK Electric Sp. z o.o.
A9: Św. Michała 62
A10: 61-005 Poznań | D10: Osoba kontaktowa:
A11: Polska
A13: Lp. | B13: Numer katalogowy | C13: Typ | D13: Opis | E13: Grupa rabatowa | F13: Cena netto (PLN) | G13: Ilość | H13: Wartość netto (PLN)
H14: 0
E18: Razem: | H18: =SUM(H14:H14) -> 0
A20: Podane ceny nie zawierają podatku VAT.
A21: Wszystkie ustalenia związane z cenami oraz zakresem i sposobem dostaw określone są
A22: w Ogólnych Warunkach Handlowych lub w Umowie Ramowej i jej aneksach.

Sheet Oferta
A1: Nr oferty:
A2: Sprzedający: | G2: Data:
A3: NOARK Electric Sp. z o.o. | D3: REGON: 145920395
A4: Św. Michała 62 | D4: NIP: 1132852232
A5: 61-005 Poznań | D5: Osoba kontaktowa:
A6: Polska
A7: Kupujący:
A8: NOARK Electric Sp. z o.o.
A9: Św. Michała 62
A10: 61-005 Poznań | D10: Osoba kontaktowa:
A11: Polska
A13: Lp. | B13: Numer katalogowy | C13: Typ | D13: Opis | E13: Grupa rabatowa | F13: Cena netto (PLN) | G13: Ilość | H13: Wartość netto (PLN)
H14: 0
E19: Razem: | H19: =SUM(H14:H15) -> 0
A21: Podane ceny nie zawierają podatku VAT.
A22: Wszystkie ustalenia związane z cenami oraz zakresem i sposobem dostaw określone są
A23: w Ogólnych Warunkach Handlowych lub w Umowie Ramowej i jej aneksach.
A24: Cena obowiązuje jedynie w przypadku, gdy wszystkie produkty zamawiane są jednocześnie.
A25: Jeżeli zapotrzebowanie na produkty ulega zmianie, wówczas zmianie podlega także cena w zależności od zamówionych towarów i ich ilości.

Sheet Ogólne Warunki Handlowe
B1: Ogólne warunki handlowe
B3: § 1.
B4: POSTANOWIENIA OGÓLNE
B5: 1. Niniejsze Ogólne Warunki Handlowe (zwane dalej „OWH”) określają prawa i obowiązki Stron umów sprzedaży urządzeń elektrotechnicznych i ich komponentów (zwanych dalej „Towarami”) zawieranych na ich podstawie przez Noark ElectRic Spółkę z ograniczoną odpowiedzialnością z siedzibą w Poznaniu (61-005) przy ul. Św. Michała 62, wpisaną do rejestru przedsiębiorców Krajowego Rejestru Sądowego prowadzonego przez Sąd Rejonowy Poznań – Stare Miasto i Wilda w Poznaniu VIII Wydział Gospodarczy Krajowego Rejestru Sądowego pod numerem 0000405497, NIP: 113-285-22-32, kapitał zakładowy w wysokości 180.000,- zł (zwaną dalej „Sprzedającym”) z przedsiębiorcami zainteresowanym kupnem Towarów (zwanymi dalej „Kupującymi”).
B6: 2. Na podstawie niniejszych OWH Strony mogą zawierać ramowe umowy współpracy (zwanej dalej „Umowami Ramowymi”), w których mogą uszczegóławiać, uzupełniać lub modyfikować postanowienia niniejszych OWH.
B8: § 2.
B9: ZAMÓWIENIA
B10: 1. Przez złożenie Zamówienia Kupujący składa Sprzedającemu ofertę nabycia Towarów wskazanych w Zamówieniu za cenę wynikającą z cennika opublikowanego na stronie internetowej Sprzedającego (zwanego dalej „Cennikiem”), aktualną w dniu złożenia Zamówienia lub za cenę ustaloną ze Sprzedającym na podstawie odrębnego porozumienia.
B11: 2. Kupujący zobowiązany jest każdorazowo, przed złożeniem Zamówienia, do zweryfikowania na stronie internetowej Sprzedającego aktualnej ceny Towarów i przyjmuje do wiadomości, że – o ile nie postanowiono inaczej – zamieszczony na tej stronie Cennik jest wyłącznym wyznacznikiem ceny Towarów.
B12: 3. Zamówienia składane są wg wzoru stanowiącego element Cennika. Każde Zamówienie powinno zawierać co najmniej:
B13: a. datę złożenia Zamówienia oraz – jeśli danego dnia składane jest więcej niż jedno Zamówienie – jego kolejny numer dzienny,
B14: b. dane Kupującego i osoby kontaktowej ze strony Kupującego w zakresie realizacji danego Zamówienia,
B15: c. wskazanie zamawianych Towarów z podaniem ich numerów katalogowych oraz ilości poszczególnych Towarów objętych zamówieniem,
B16: d. dokładne wskazanie miejsca dostawy Towarów.
B17: 2. Zamówienie powinno zostać złożone Sprzedającemu:
B18: a. za pośrednictwem poczty elektronicznej na adres e-mail: infoPL@noark-electric.com,
B19: b. faksem na numer: +48 61 222 67 68,
B20: c. osobiście w siedzibie Sprzedającego lub na ręce jego upoważnionych przedstawicieli.
B22: § 3.
B23: REALIZACJA ZAMÓWIENIA
B24: 1. Sprzedający ustala minimum logistyczne na poziomie 2000,- zł. W razie realizacji Zamówienia o wartości netto poniżej tej kwoty, Sprzedający obciąży Kupującego kosztami przesyłki Towarów w zryczałtowanej wysokości 100,- zł netto. W razie realizacji Zamówienia o wartości przekraczającej omawianą kwotę, koszty przesyłki w całości obciążają Sprzedającego.
B25: 2. Niezależnie od wprowadzonego minimum logistycznego Sprzedającego obciążają koszty dostawy Towarów wyłącznie na terenie Rzeczypospolitej Polskiej. Koszty dostawy zagranicznej w każdym przypadku obciążają Kupującego.
B26: 3. O ile nie umówiono się inaczej, Sprzedający zorganizuje wysyłkę Towarów do miejsca wskazanego przez Kupującego w Zamówieniu. Jednocześnie z nadaniem Towarów Sprzedający wyśle na adres siedziby Kupującego fakturę, na której ujęta będzie należność z tytułu ceny sprzedaży Towarów objętych danym Zamówieniem oraz zryczałtowane koszty przesyłki w razie realizacji Zamówienia poniżej ustalonego minimum logistycznego.
B28: § 4.
B29: WYDANIE TOWARÓW I ZAPŁATA CENY
B30: 1. Odpowiedzialność za przesyłane Towary, od momentu ich powierzenia przewoźnikowi w celu dostarczenia do Kupującego do chwili ich wydania, ponosi ten, kto organizuje wysyłkę Towarów.
B31: 2. Po doręczeniu Towarów objętych Zamówieniem na miejsce przeznaczenia Kupujący zobowiązany jest zbadać przesyłkę pod kątem jej całości i nienaruszalności. Jeżeli Kupujący stwierdzi, że w czasie przewozu nastąpił ubytek lub uszkodzenie Towarów, zobowiązany jest dokonać wszelkich czynności niezbędnych do ustalenia odpowiedzialności przewoźnika.
B32: 3. Przejście prawa własności Towarów ze Sprzedającego na Kupującego następuje w momencie zapłaty całości ceny Towarów objętych danym Zamówieniem.
B33: 4. Zapłata należności Sprzedającego nastąpi przelewem na rachunek bankowy Sprzedającego wskazany na odpowiedniej fakturze. Za datę zapłaty przyjmuje się datę uznania należności na rachunku bankowym Sprzedającego.
B35: § 5.
B36: UPRAWNIENIA SPRZEDAJĄCEGO W RAZIE NIEDOTRZYMANIA TERMINU PŁATNOŚCI
B37: 1. W razie niedotrzymania terminu płatności Kupujący powinien, bez osobnego wezwania, zapłacić na rzecz Sprzedającego odsetki za opóźnienie w wysokości odsetek ustawowych.
B38: 2. Niezależnie od postanowienia ust. 1 powyżej, jeżeli Kupujący opóźnia się z zapłatą wymagalnych należności Sprzedającego z tytułu realizacji jakiegokolwiek Zamówienia, Sprzedającemu przysługuje prawo wstrzymania realizacji wszelkich Zamówień, do czasu uregulowania całości zadłużenia wobec Sprzedającego.
B39: 3. Wstrzymanie realizacji Zamówień, o którym mowa w ust. 2 powyżej, w żadnym przypadku nie będzie rozumiane jako opóźnienie czy zwłoka po stronie Sprzedającego.
B41: § 6.
B42: GWARANCJA
B43: 1. Sprzedający udziela Kupującemu gwarancji jakości na dostarczone Towary przez okres pięciu lat od dnia dostarczenia Towarów do Kupującego.
B44: 2. W ramach gwarancji jakości Sprzedający zapewnia, iż dostarczone Towary będą sprawne i nadające się do używania zgodnie z ich przeznaczeniem przez cały okres ochrony gwarancyjnej.
B45: 3. W ramach gwarancji jakości Sprzedający zobowiązuje się do bezpłatnej naprawy lub – gdyby naprawa była niemożliwa albo pociągała za sobą nadmierne koszty – do wymiany reklamowanego Towaru na nowy.
B46: 4. Gwarancja jakości nie obejmuje wad wynikających z:
B47: a. uszkodzeń wywołanych działaniem Kupującego lub jakiejkolwiek osoby trzeciej,
B48: b. nieprawidłowego montażu, przechowywania, używania lub konserwacji Towarów,
B49: c. zużycia elementów podlegających normalnemu zużyciu w trakcie ich prawidłowej eksploatacji (np. ochronników przepięciowych),
B50: d. modyfikacji Towarów dokonanych bez upoważnienia Sprzedającego,
B51: e. czynników zewnętrznych, na które Sprzedający nie ma wpływu, w tym siły wyższej,
B52: przy czym wyznacznikiem prawidłowego montażu, przechowywania, używania lub konserwacji Towarów są wszelkie przekazane Kupującemu przez Sprzedającego dokumenty (w szczególności instrukcja obsługi) oraz stosowne oznaczenia zamieszczone na danym egzemplarzu Towaru, jak również powszechnie znana i przyjęta praktyka postępowania z urządzeniami tego typu.
B53: 5. W celu realizacji uprawnień wynikających z gwarancji jakości Kupujący powinien zgłosić Sprzedającemu reklamację wskazującą na stwierdzone wady Towarów nie później, niż w ciągu 30 dni od daty stwierdzania wystąpienia wady.
B54: 6. Reklamacja powinna zawierać:
B55: a. dane identyfikacyjne Kupującego i osoby kontaktowej ze strony Kupującego w zakresie reklamacji,
B56: b. wskazanie reklamowanych Towarów z podaniem numeru odnoszącego się do nich Zamówienia, numerów katalogowych oraz ilości Towarów objętych reklamacją,
B57: c. dokładne wskazanie stwierdzonych wad oraz daty i sposobu ich ujawnienia się.
B58: 7. Sprzedający rozpatrzy zgłoszoną reklamację w ciągu 60 dni od daty jej wpływu i niezwłocznie po jej rozpatrzeniu poinformuje Kupującego o sposobie załatwienia reklamacji.
B59: 8. W przypadku uwzględnienia reklamacji Kupujący powinien przesłać Sprzedającemu reklamowane Towary, który następnie dokona ich naprawy lub wymiany na nowe, zgodnie z zaproponowanym sposobem załatwienia reklamacji.
B60: 9. Naprawa lub wymiana gwarancyjna pozostaje bez wpływu na bieg okresu gwarancji w stosunku do reklamowanych Towarów.
B61: 10. W związku z udzieloną gwarancją jakości Sprzedający i Kupujący wyłączają pomiędzy sobą stosowanie przepisów o rękojmi za wady rzeczy sprzedanej.
B63: § 7.
B64: OCHRONA DANYCH OSOBOWYCH I TELEADRESOWYCH
B65: 1. Wszelkie dane osobowe przekazane Sprzedającemu przez Kupującego w związku z udzielanymi Zamówieniami i sprzedażą Towarów będą przetwarzane przez Zamawiającego wyłącznie w celu realizacji zawartej umowy sprzedaży Towarów, z zastrzeżeniem ust. 2 poniżej.
B66: 2. Przez złożenie Zamówienia Kupujący wyraża zgodę na wykorzystywanie przekazanego Sprzedającemu adresu, adresu e-mail lub numeru faksu Kupującego również w celach marketingowych, w szczególności w zakresie informowania o nowych produktach w ofercie Sprzedającego lub o nowym cenniku.
B67: 3. Przetwarzanie wszelkich danych osobowych odbywać się będzie z zgodzie z przepisami ustawy z dnia 29 sierpnia 1997 r. o ochronie danych osobowych (Dz.U. z 2002 r., Nr 101, Poz. 926 z późn. zm.). Sprzedającemu przysługuje w szczególności prawo do wglądu w zgromadzone dane i ich poprawiania.
B69: § 8.
B70: OBOWIĄZYWANIE OWH
B71: 1. Niniejsze OWH obowiązują od dnia 8-my maja 2013 r.
B72: 2. W przypadku opracowania przez Sprzedającego nowej treści OWH i zawarcia pomiędzy Stronami Umowy Ramowej, zmienione postanowienia mogą mieć zastosowanie do relacji pomiędzy Sprzedającym a Kupującym wyłącznie wówczas, gdy Kupujący wyraził na to zgodę na piśmie, w drodze podpisania stosownego aneksu do Umowy Ramowej.
B73: 3. W przypadku, gdy Strony nie zawarły Umowy Ramowej, Kupującego wiąże treść OWH stanowiących element cennika opublikowanego na stronie internetowej Sprzedającego aktualna na dzień składania Zamówienia.
B79: …………………………………………………………………………………….
B80: NOARK Electric Sp. z o.o.

Sheet Gwarancja
B1: Gwarancja
B3: 1. Sprzedający udziela Kupującemu gwarancji jakości na dostarczone Towary przez okres pięciu lat od dnia dostarczenia Towarów do Kupującego.
B4: 2. W ramach gwarancji jakości Sprzedający zapewnia, iż dostarczone Towary będą sprawne i nadające się do używania zgodnie z ich przeznaczeniem przez cały okres ochrony gwarancyjnej.
B5: 3. W ramach gwarancji jakości Sprzedający zobowiązuje się do bezpłatnej naprawy lub – gdyby naprawa była niemożliwa albo pociągała za sobą nadmierne koszty – do wymiany reklamowanego Towaru na nowy.
B6: 4. Gwarancja jakości nie obejmuje wad wynikających z:
B7: a. uszkodzeń wywołanych działaniem Kupującego lub jakiejkolwiek osoby trzeciej,
B8: b. nieprawidłowego montażu, przechowywania, używania lub konserwacji Towarów,
B9: c. zużycia elementów podlegających normalnemu zużyciu w trakcie ich prawidłowej eksploatacji (np. ochronników przepięciowych),
B10: d. modyfikacji Towarów dokonanych bez upoważnienia Sprzedającego,
B11: e. czynników zewnętrznych, na które Sprzedający nie ma wpływu, w tym siły wyższej,
B12: przy czym wyznacznikiem prawidłowego montażu, przechowywania, używania lub konserwacji Towarów są wszelkie przekazane Kupującemu przez Sprzedającego dokumenty (w szczególności instrukcja obsługi) oraz stosowne oznaczenia zamieszczone na danym egzemplarzu Towaru, jak również powszechnie znana i przyjęta praktyka postępowania z urządzeniami tego typu.
B13: 5. W celu realizacji uprawnień wynikających z gwarancji jakości Kupujący powinien zgłosić Sprzedającemu reklamację w formie pisemnej wysłanej na adres siedziby firmy NOARK, albo za pomocą poczty elektronicznej, wskazującą na stwierdzone wady Towarów nie później, niż w ciągu 30 dni od daty stwierdzania wystąpienia wady.
B14: 6. Reklamacja powinna zawierać:
B15: a. dane identyfikacyjne Kupującego i osoby kontaktowej ze strony Kupującego w zakresie reklamacji,
B16: b. wskazanie reklamowanych Towarów z podaniem numeru odnoszącego się do nich Zamówienia, numerów katalogowych oraz ilości Towarów objętych reklamacją,
B17: c. dokładne wskazanie stwierdzonych wad oraz daty i sposobu ich ujawnienia się.
B18: 7. Sprzedający rozpatrzy zgłoszoną reklamację w ciągu 14 dni od daty jej wpływu i niezwłocznie po jej rozpatrzeniu poinformuje Kupującego o sposobie załatwienia reklamacji.
B19: 8. W przypadku uwzględnienia reklamacji Kupujący powinien przesłać Sprzedającemu reklamowane Towary , który następnie dokona ich naprawy lub wymiany na nowe, zgodnie z zaproponowanym sposobem załatwienia reklamacji.
B20: 9. Naprawa lub wymiana gwarancyjna pozostaje bez wpływu na bieg okresu gwarancji w stosunku do reklamowanych Towarów.
B21: 10. W związku z udzieloną gwarancją jakości Sprzedający i Kupujący wyłączają pomiędzy sobą stosowanie przepisów o rękojmi za wady rzeczy sprzedanej.

Sheet Instrukcja obsługi
B2: ______________________________________________________
B3: INSTRUKCJA OBSŁUGI
B4: ______________________________________________________
B7: 1. Wybierz arkusz "Grupy rabatowe" i określ warunki rabatowe. Możesz je ustawić zarówno dla podstawowych, jak i szczegółowych grup.
B8: 2. Warunki rabatowe muszą być ustawione przed utworzeniem zamówienia lub oferty. Późniejsze zmiany nie zostaną uwzględnione w zamówieniu lub w ofercie.
B9: 3. Aby dodać element do zamówienia należy wybrać dowolną komórkę w rzędzie z odpowiednim produktem i kliknąć na "Dodaj do zamówienia".
B10: 4. Aby dodać element do oferty należy wybrać dowolną komórkę w rzędzie z odpowiednim produktem i kliknąć na "Dodaj do oferty".
B11: 5. Po kliknięciu na odpowiedni przycisk - zgodnie z punktem 3 lub 4 - pojawi się okno, w którym należy wpisać liczbę wymaganych sztuk i potwierdzić ją klawiszem Enter.
B12: 6. Można wybrać więcej produktów za pomocą klawisza Shift lub Alt. Pojawią się kolejno okna z informacją o ilości wymaganych sztuk.
B13: 7. Wypełnij dane kontaktowe w nagłówku zamówienia lub oferty.
B14: 8. Jeśli chcesz usunąć wiersz oferty lub zamówienia, wybierz dowolną komórkę w odpowiednim wierszu i kliknij na "Usuń wiersz".
B15: 9. Klikając na "Usuń wszystko", możesz usunąć całą listę produktów z oferty lub zamówienia.
B16: 10. Możesz zapisać swoje zamówienie lub ofertę jako plik Excel.
B17: 11. Klikając na "Zapisz jako PDF", możesz zapisać swoje zamówienie lub ofertę jako plik PDF.
B18: 12. Do wydrukowania oferty lub zamówienia prosimy skorzystać ze standardowych narzędzi drukowania aplikacji Excel.
